bitfinex-derivatives/quotes_BNBF0:USTF0_20250305
["timestamp","ask_amount","ask_price","bid_price","bid_amount"]
[1741170193567,1.18782879,599.24,598.48,0.27957717]
[1741170194068,0.3337171,599.31,598.49,0.27957717]
[1741170194265,2.60029317,599.3,598.46,0.27957717]
[1741170194464,0.94741986,599.29,598.47,0.27957717]
[1741170194669,1.19003726,599.3,598.46,0.27957717]
[1741170194971,1.19003726,599.3,598.47,0.27957717]
[1741170195166,2.6025895,599.29,598.46,0.27957717]
[1741170195368,1.19003726,599.3,598.47,0.27957717]
[1741170195568,1.19003726,599.28,598.48,0.27950656]
[1741170195774,1.19003726,599.28,598.49,0.27950656]
[1741170196074,0.50047437,599.58,598.5,0.27950656]
[1741170196273,7.27235201,599.57,598.46,0.27950656]
[1741170196474,7.27235201,599.56,598.47,0.27950656]
[1741170196672,7.27235201,599.55,598.48,0.27950656]
[1741170196873,7.27235201,599.54,598.49,0.27950656]
[1741170197169,7.27235201,599.53,598.6,1.22818455]
[1741170197374,7.27235201,599.52,598.6,1.22818455]
[1741170197575,7.27235201,599.51,598.61,0.27950656]
[1741170197875,7.27235201,599.5,598.61,0.27950656]
[1741170198070,7.27235201,599.49,598.61,0.27950656]
[1741170198268,7.27235201,599.48,598.61,0.27950656]
[1741170198569,7.27235201,599.47,598.61,0.27950656]
[1741170198773,6.77187764,599.46,598.61,0.27950656]
[1741170198973,6.77187764,599.45,598.61,0.27950656]
[1741170199173,3.0988003,599.46,598.61,0.27950656]
[1741170199174,6.77187764,599.44,598.61,0.27950656]
[1741170199376,6.77187764,599.43,598.61,0.27950656]
[1741170199578,8.35243074,599.42,598.62,0.27950656]
[1741170199772,5.25363044,599.41,598.63,0.27950656]
[1741170199977,5.25363044,599.4,598.6,0.27950656]
[1741170200173,2.60456832,599.39,598.61,0.27950656]
[1741170200372,2.60456832,599.38,598.62,0.27950656]
[1741170200575,0.9489045,599.37,598.63,0.27950656]
[1741170200777,0.9489045,599.36,598.6,0.27950656]
[1741170200976,1.19184627,599.37,598.58,0.27950656]
[1741170201277,1.19184627,599.37,598.59,0.27950656]
[1741170201473,1.19184627,599.36,598.6,0.27950656]
[1741170201776,1.19184627,599.36,598.61,0.27950656]
[1741170201978,2.6502759,599.51,598.58,0.27950656]
[1741170202278,6.77471248,599.5,598.59,0.27950656]
[1741170202480,6.77471248,599.49,598.58,0.27950656]
[1741170202678,0.29044171,599.54,598.57,1.22818455]
[1741170202679,6.77427192,599.48,598.57,1.22818455]
[1741170202979,9.87420057,599.47,598.58,0.27949711]
[1741170203176,9.87401801,599.46,598.51,0.27949711]
[1741170203379,2.60559239,599.45,598.52,0.27949711]
[1741170203679,3.79787264,599.44,598.53,0.27949711]
[1741170203981,2.60559239,599.43,598.54,0.27950195]
[1741170204180,2.60559239,599.42,598.55,0.27950195]
[1741170204381,2.60559239,599.41,598.45,0.264]
[1741170204575,2.60501948,599.4,598.46,0.27950308]
[1741170204781,2.60521104,599.39,598.52,0.2904502]
[1741170204978,2.60521104,599.38,598.53,0.27950308]
[1741170205181,2.60521104,599.37,598.54,0.27950308]
[1741170205378,0.94927761,599.36,598.55,0.27950308]
[1741170205579,1.19228025,599.39,598.56,0.27950308]
[1741170205780,2.60495156,599.38,598.57,0.27950308]
[1741170205977,2.60495156,599.37,598.58,0.27950308]
[1741170206179,2.60495156,599.36,598.59,0.27950308]
[1741170206379,1.19228025,599.36,598.6,0.27950308]
[1741170206580,1.19228025,599.36,598.61,0.27950308]
[1741170206782,1.19228025,599.36,598.62,0.27950308]
[1741170206979,1.19228025,599.35,598.63,0.27950308]
[1741170207283,1.65594969,599.34,598.64,0.27950308]
[1741170207475,1.65594969,599.33,598.65,0.27950308]
[1741170207679,2.60504634,599.32,598.66,0.27950308]
[1741170207877,2.6052905,599.31,598.56,1.22818455]
[1741170208082,0.94909665,599.3,598.57,0.27952192]
[1741170208283,1.19231098,599.3,598.58,0.27952192]
[1741170208581,1.19231098,599.3,598.59,0.27952192]
[1741170208783,1.19231098,599.3,598.6,0.27952192]
[1741170209083,1.19231098,599.29,598.61,0.27952192]
[1741170209379,1.19231098,599.29,598.62,0.27952192]
[1741170209582,1.19231098,599.29,598.63,0.27952192]
[1741170209777,0.29047323,599.46,598.64,0.27952448]
[1741170209778,1.19231098,599.28,598.64,0.27952448]
[1741170210083,1.19231098,599.28,598.65,0.27952448]
[1741170210283,1.19231098,599.28,598.66,0.27952448]
[1741170210483,1.19231098,599.28,598.67,0.27952448]
[1741170210687,0.29048899,599.4,598.58,0.29048899]
[1741170210882,6.77559064,599.39,598.59,0.27952448]
[1741170211081,6.77559064,599.38,598.59,0.27952448]
[1741170211284,6.77559064,599.37,598.59,0.27952448]
[1741170211584,6.77559064,599.36,598.6,0.2795668]
[1741170211892,6.77559064,599.35,598.61,0.2795668]
[1741170212084,6.77559064,599.34,598.58,0.2795668]
[1741170212280,6.77559064,599.34,598.45,0.264]
[1741170212281,6.77559064,599.33,598.59,0.2795668]
[1741170212477,6.77559064,599.32,598.49,0.2795668]
[1741170212683,6.77559064,599.31,598.5,0.2795668]
[1741170212983,6.77559064,599.3,598.51,0.2795668]
[1741170213185,6.77559064,599.29,598.48,0.29051081]
[1741170213485,6.77559064,599.28,598.49,0.2795831]
[1741170213686,4.12509165,599.27,598.5,0.2795831]
[1741170213886,2.6059964,599.26,598.5,0.2795831]
[1741170214086,2.6059964,599.25,598.51,0.2795831]
[1741170214285,2.6059964,599.25,598.48,0.29053749]
[1741170214286,2.6059964,599.24,598.52,0.2795831]
[1741170214485,2.6059964,599.23,598.49,0.2795831]
[1741170214687,2.60568438,599.22,598.5,0.2795831]
[1741170214885,1.65656187,599.21,598.49,0.2795831]
[1741170215085,0.29053749,599.28,598.5,0.2795831]
[1741170215086,1.65656187,599.2,598.5,0.2795831]
[1741170215386,0.29053749,599.28,598.51,0.2795831]
[1741170215581,2.60563503,599.27,598.52,0.2795831]
[1741170215784,2.60563503,599.26,598.49,0.2795831]
[1741170215985,1.1925177,599.27,598.5,0.2795831]
[1741170215986,2.60563503,599.25,598.5,0.2795831]
[1741170216285,1.1925177,599.25,598.51,0.2795831]
[1741170216485,1.1925177,599.24,598.52,0.2795831]
[1741170216684,1.1925177,599.24,598.49,0.2795831]
[1741170217381,1.1925177,599.23,598.49,0.2795831]
[1741170218087,0.29053749,599.28,598.49,0.2795831]
[1741170218382,2.60558123,599.27,598.49,0.2795831]
[1741170218581,1.65627711,599.26,598.5,0.27958893]
[1741170218783,2.60571549,599.25,598.51,0.27958893]
[1741170218981,2.60584624,599.24,598.49,0.27958893]
[1741170219185,2.60571598,599.23,598.5,0.27958893]
[1741170219386,2.60571598,599.22,598.51,0.27958893]
[1741170219587,3.79821657,599.21,598.52,0.27958893]
[1741170219788,2.60571598,599.2,598.46,0.27958893]
[1741170219992,2.60571598,599.19,598.47,0.27958893]
[1741170220183,2.60571598,599.18,598.46,0.27958893]
[1741170220381,1.19250059,599.17,598.48,0.27958893]
[1741170220586,1.19250059,599.17,598.49,0.27958893]
[1741170220783,1.19250059,599.17,598.43,0.27958893]
[1741170220983,0.29055084,599.22,598.44,0.27958893]
[1741170221189,2.6054037,599.21,598.43,0.27958893]
[1741170221390,0.29055084,599.22,598.42,0.29055084]
[1741170221391,2.6054037,599.2,598.44,0.27958893]
[1741170221689,2.6054037,599.19,598.45,0.27958893]
[1741170221883,1.19232629,599.2,598.46,0.27958893]
[1741170222087,2.14155362,599.19,598.43,0.27958893]
[1741170222284,1.19232629,599.19,598.44,0.27958893]
[1741170222490,1.65606338,599.18,598.43,0.27958893]
[1741170222789,1.19232629,599.19,598.34,1.22818455]
[1741170222790,1.65606338,599.17,598.44,0.27958893]
[1741170222990,2.60528198,599.16,598.43,0.27958893]
[1741170223290,3.79760827,599.15,598.44,0.27958893]
[1741170223490,3.79760827,599.15,598.48,1.22818455]
[1741170223491,2.60528198,599.14,598.48,1.22818455]
[1741170223685,3.79760827,599.13,598.49,0.27958893]
[1741170223887,1.19232629,599.13,598.49,0.27958893]
[1741170224087,2.60525119,599.12,598.49,0.27958893]
[1741170224286,0.94911873,599.11,598.49,0.27958893]
[1741170224488,1.19232629,599.13,598.49,0.27958893]
[1741170224689,2.60511028,599.12,598.49,0.27958893]
[1741170224890,1.19232629,599.1,598.49,0.27958893]
[1741170225491,3.79730153,599.09,598.48,1.22818455]
[1741170225693,2.60497524,599.08,598.49,0.27964335]
[1741170225893,2.60497524,599.07,598.49,0.27964335]
[1741170226088,2.60497524,599.06,598.49,0.27964335]
[1741170226289,2.60497524,599.05,598.49,0.27964335]
[1741170226484,0.94892706,599.04,598.49,0.27964335]
[1741170226690,1.19232629,599.06,598.49,0.27964335]
[1741170226890,2.60484803,599.05,598.49,0.27964335]
[1741170227092,1.19232629,599.03,598.49,0.27964335]
[1741170227392,1.19232629,599.03,598.5,0.27964335]
[1741170227589,1.19232629,599.03,598.51,0.27964335]
[1741170227790,0.29057388,599.18,598.43,0.264]
[1741170227791,0.29057388,599.18,598.44,0.27964335]
[1741170227990,6.77082998,599.17,598.45,0.27964335]
[1741170228190,6.77082998,599.16,598.45,0.27964335]
[1741170228385,6.77082998,599.15,598.46,0.27964335]
[1741170228604,0.98620061,599.36,598.43,0.264]
[1741170228605,2.60416537,599.14,598.44,0.27964335]
[1741170228793,2.60416537,599.14,598.45,0.27964335]
[1741170228794,2.60416537,599.13,598.45,0.27964335]
[1741170228988,2.60416537,599.12,598.45,0.27964335]
[1741170229190,2.60416537,599.11,598.46,0.27964335]
[1741170229391,2.60416537,599.1,598.44,1.5078279]
[1741170229586,0.94881066,599.09,598.45,0.27964335]
[1741170229788,0.94881066,599.08,598.45,0.27964335]
[1741170229987,1.19173991,599.09,598.45,0.27964335]
[1741170230391,0.29058359,599.23,598.45,0.27964335]
[1741170230592,2.60420117,599.22,598.45,0.27964335]
[1741170230792,2.60420117,599.21,598.46,0.27961636]
[1741170230988,3.79607676,599.2,598.45,0.27961636]
[1741170231190,1.19187559,599.2,598.46,0.27961636]
[1741170231395,1.19187559,599.2,598.45,0.27961636]
[1741170231596,1.19187559,599.19,598.46,0.27961636]
[1741170231896,0.29053264,599.31,598.47,0.27961636]
[1741170232191,6.77315772,599.3,598.48,0.27961636]
[1741170232391,6.77315772,599.29,598.44,0.27961636]
[1741170232696,6.77315772,599.28,598.45,0.27958786]
[1741170232995,2.60506066,599.27,598.46,0.27958786]
[1741170233294,2.60506066,599.26,598.47,0.27958786]
[1741170233494,3.0998803,599.27,598.47,0.27958786]
[1741170233495,2.60506066,599.25,598.47,0.27958786]
[1741170233688,2.60506066,599.24,598.47,0.27958786]
[1741170233891,2.60506066,599.23,598.47,0.27958786]
[1741170234091,2.60506066,599.22,598.47,0.27958786]
[1741170234298,2.60520664,599.21,598.47,0.27958786]
[1741170234495,1.19226165,599.21,598.47,0.27958786]
[1741170235092,1.19226165,599.2,598.47,0.27958786]
[1741170235396,1.19226165,599.2,598.48,0.27958786]
[1741170235590,1.19226165,599.2,598.44,0.27958786]
[1741170235787,1.19226165,599.2,598.45,0.27958786]
[1741170235992,1.19226165,599.2,598.46,0.27958786]
[1741170236189,0.29052052,599.39,598.47,0.27958786]
[1741170236394,6.77407535,599.38,598.48,0.27958786]
[1741170236592,2.60541359,599.37,598.49,0.27958786]
[1741170236793,3.09973399,599.38,598.5,0.27958786]
[1741170236992,2.60565652,599.37,598.51,0.27958786]
[1741170237196,1.65634957,599.36,598.52,0.27958786]
[1741170237391,1.19220538,599.37,598.53,0.27958786]
[1741170237595,7.72973114,602.1,598.54,0.27958786]
[1741170237596,1.65636263,599.36,598.54,0.27958786]
[1741170237795,0.50048164,599.6,598.58,1.22818455]
[1741170237994,7.2749852,599.59,598.59,0.27952742]
[1741170238190,0.29049626,599.41,598.59,0.27952742]
[1741170238396,2.60557829,599.4,598.59,0.27952742]
[1741170238597,6.77462314,599.39,598.59,0.27952742]
[1741170238792,3.43398844,599.58,598.59,0.27952742]
[1741170238996,3.10042161,599.38,598.59,0.27952742]
[1741170239197,6.77438563,599.37,598.59,0.27952742]
[1741170239392,6.77466629,599.36,598.59,0.27952742]
[1741170239595,9.87517859,599.35,598.58,1.22818455]
[1741170239791,2.60553293,599.34,598.59,0.27957077]
[1741170239997,2.60553293,599.33,598.59,0.27957077]
[1741170240197,2.60553293,599.32,598.59,0.27957077]
[1741170240394,2.60553293,599.31,598.61,1.22818455]
[1741170240599,2.60553293,599.3,598.62,0.27957077]
[1741170240799,2.60553293,599.29,598.62,0.27957077]
[1741170240999,2.60575243,599.28,598.62,0.27957077]
[1741170241200,0.94954369,599.27,598.62,0.27957077]
[1741170241495,1.19246985,599.3,598.62,0.27957077]
[1741170241701,2.60622155,599.29,598.62,0.27957077]
[1741170241900,2.60622155,599.28,598.62,0.27957077]
[1741170242207,1.19271451,599.27,598.62,0.27957077]
[1741170242704,0.94962319,599.26,598.62,0.27957077]
[1741170242903,0.2904999,599.32,598.66,1.22818455]
[1741170243101,2.60588732,599.31,598.67,0.27957077]
[1741170243298,5.70705737,599.3,598.68,0.27957312]
[1741170243504,2.60588732,599.29,598.67,0.27957312]
[1741170243704,2.60588732,599.28,598.68,0.27957312]
[1741170244002,1.19275771,599.27,598.69,0.27957312]
[1741170244207,1.19275771,599.27,598.67,0.27957312]
[1741170244505,4.67076115,599.55,598.68,0.27957312]
[1741170244705,7.27761247,599.54,598.69,0.27957312]
[1741170244903,0.29044777,599.52,598.7,0.27957312]
[1741170245105,0.29044777,599.52,598.71,0.27957312]
[1741170245305,10.37991312,599.51,598.72,0.27957312]
[1741170245506,6.77796527,599.5,598.73,0.27957312]
[1741170245702,6.32865906,599.49,598.74,0.27957312]
[1741170245908,6.77796527,599.48,598.6,0.27957312]
[1741170246108,6.77796527,599.47,598.61,0.27957312]
[1741170246309,6.77796527,599.46,598.62,0.27957312]
[1741170246505,9.87946726,599.45,598.63,0.27957312]
[1741170246810,2.60690972,599.44,598.64,0.27957312]
[1741170247109,0.94971578,599.43,598.65,0.27957312]
[1741170247310,1.1929903,599.43,598.66,0.27957312]
[1741170247608,1.1929903,599.43,598.67,0.27957312]
[1741170247810,1.1929903,599.43,598.68,0.27957312]
[1741170248003,1.1929903,599.43,598.69,0.27957312]
[1741170248209,0.29040051,599.7,598.71,1.22818455]
[1741170248406,6.77334798,599.56,598.72,0.27957312]
[1741170248605,9.87293491,599.55,598.73,0.27957312]
[1741170248907,6.77400934,599.54,598.74,0.27957312]
[1741170249101,2.60539549,599.53,598.75,0.27957312]
[1741170249309,2.60539549,599.52,598.76,0.27957312]
[1741170249507,2.60539549,599.51,598.77,0.27957312]
[1741170249709,2.60539549,599.5,598.78,0.27957312]
[1741170249908,2.60539549,599.49,598.79,0.27957312]
[1741170250115,2.60539549,599.48,598.77,0.27957312]
[1741170250413,2.60539549,599.47,598.78,0.27957312]
[1741170250714,2.60539549,599.46,598.79,0.27957312]
[1741170250915,2.60539549,599.46,598.76,1.22818455]
[1741170250916,2.60539549,599.45,598.8,0.27957312]
[1741170251216,1.19214882,599.46,598.81,0.27957312]
[1741170251413,3.79633366,599.45,598.77,0.27957312]
[1741170251614,1.19214882,599.45,598.78,0.27957312]
[1741170251810,1.19214882,599.45,598.79,0.27957312]
[1741170252010,0.29040051,599.7,598.66,0.264]
[1741170252011,3.79628787,599.44,598.66,0.264]
[1741170252215,1.19214882,599.44,598.67,0.2794624]
[1741170252413,0.98549777,599.69,598.68,0.2794624]
[1741170252611,6.77066357,599.56,598.69,0.2794624]
[1741170252810,6.77066357,599.55,598.7,0.2794624]
[1741170253110,6.77066357,599.54,598.71,0.2794624]
[1741170253315,6.77066357,599.54,598.66,0.264]
[1741170253316,6.77066357,599.53,598.72,0.2794624]
[1741170253512,6.77076662,599.52,598.73,0.2794624]
[1741170253715,3.09839124,599.54,598.74,0.2794624]
[1741170253716,2.60410137,599.51,598.74,0.2794624]
[1741170253916,2.60410137,599.5,598.75,0.2794624]
[1741170254114,2.60410137,599.49,598.76,0.2794624]
[1741170254318,2.60410137,599.48,598.77,0.2794624]
[1741170254618,2.14040601,599.47,598.78,0.2794624]
[1741170254821,1.19168894,599.47,598.79,0.2794624]
[1741170255116,0.29041869,599.56,598.8,0.2794624]
[1741170255312,6.76961252,599.55,598.67,0.2794624]
[1741170255518,7.21928435,599.54,598.68,0.2794624]
[1741170255714,2.60369712,599.53,598.67,0.2794624]
[1741170255912,2.60369712,599.52,598.68,0.2794624]
[1741170256116,2.60369712,599.51,598.69,0.2794624]
[1741170256316,2.60369712,599.5,598.7,0.2794624]
[1741170256613,2.60369712,599.49,598.71,0.2794624]
[1741170256915,2.60369712,599.48,598.72,0.2794624]
[1741170257111,2.60324931,599.47,598.73,0.2794624]
[1741170257312,2.60324931,599.46,598.66,0.264]
[1741170257511,2.60324931,599.45,598.67,0.27949643]
[1741170257716,2.60324931,599.44,598.67,0.27949643]
[1741170257911,2.60324931,599.43,598.67,0.27949643]
[1741170258111,2.60324931,599.42,598.67,0.27949643]
[1741170258318,2.60324931,599.41,598.67,0.27949643]
[1741170258514,2.60324931,599.4,598.67,0.27949643]
[1741170258817,2.60324931,599.39,598.67,0.27949643]
[1741170259118,1.19149033,599.39,598.67,0.27949643]
[1741170259615,0.50046889,599.55,598.67,0.27949643]
[1741170259815,0.29049505,599.47,598.67,0.27949643]
[1741170260011,5.250152,599.46,598.67,0.27949643]
[1741170260215,5.250152,599.45,598.67,0.27949643]
[1741170260412,2.60281705,599.44,598.66,0.264]
[1741170260717,2.60281705,599.43,598.66,0.264]
[1741170260917,2.60281705,599.42,598.66,0.264]
[1741170261114,2.60296659,599.41,598.66,0.264]
[1741170261311,3.09700206,599.43,598.66,0.264]
[1741170261515,1.1911649,599.4,598.66,0.264]
[1741170261711,1.1911649,599.4,598.67,0.27949592]
[1741170261919,1.1911649,599.4,598.68,0.27949592]
[1741170262120,0.50042973,599.54,598.69,0.27949592]
[1741170262315,7.26833526,599.53,598.66,0.264]
[1741170262520,6.76790553,599.52,598.67,0.2794769]
[1741170262721,6.76790553,599.51,598.68,0.2794769]
[1741170262920,2.60304059,599.5,598.69,0.2794769]
[1741170263121,2.60304059,599.49,598.7,0.2794769]
[1741170263322,2.60304059,599.48,598.71,0.2794769]
[1741170263522,2.60304059,599.47,598.72,0.2794769]
[1741170263823,2.60304059,599.46,598.73,0.2794769]
[1741170264021,1.19116503,599.48,598.74,0.2794769]
[1741170264423,1.19116503,599.47,598.75,0.2794769]
[1741170264722,0.29040051,599.61,598.76,0.2794769]
[1741170264922,6.76611186,599.56,598.77,0.2794769]
[1741170265121,6.76611186,599.55,598.78,0.2794769]
[1741170265421,6.76611186,599.54,598.79,0.2794769]
[1741170265620,4.11912875,599.53,598.8,0.2794769]
[1741170265821,2.60235071,599.52,598.81,0.2794769]
[1741170266021,2.60235071,599.51,598.82,0.2794769]
[1741170266321,2.60235071,599.5,598.83,0.2794769]
[1741170266523,2.60235071,599.49,598.84,0.2794769]
[1741170266718,0.94807356,599.48,598.85,0.2794769]
[1741170266920,1.19084216,599.51,598.77,0.2794769]
[1741170267122,0.94798368,599.5,598.78,0.2794769]
[1741170267321,0.29040051,599.61,598.79,0.2794769]
[1741170267522,2.60192519,599.56,598.8,0.2794769]
[1741170267722,0.98549777,599.76,598.76,1.22818455]
[1741170267723,2.60192519,599.55,598.76,1.22818455]
[1741170267924,2.60192519,599.54,598.77,0.27943929]
[1741170268119,1.19065121,599.55,598.76,1.22818455]
[1741170268120,1.19065121,599.55,598.78,0.27943929]
[1741170268322,1.19065121,599.55,598.79,0.27943929]
[1741170268523,0.50033576,599.77,598.8,0.27943929]
[1741170268719,0.29035447,599.72,598.81,0.27943929]
[1741170268927,0.50033576,599.71,598.82,0.27943929]
[1741170269124,0.50033576,599.7,598.83,0.27943929]
[1741170269325,0.29035447,599.72,598.84,0.27943929]
[1741170269528,0.50031729,599.71,598.85,0.27943929]
[1741170269722,0.50031729,599.7,598.86,0.27943929]
[1741170269929,0.29035447,599.72,598.87,0.27943929]
[1741170270128,3.14644277,599.71,598.88,0.27943929]
[1741170270429,0.50032241,599.7,598.89,0.27943929]
[1741170270624,0.98445846,599.81,598.9,0.27943929]
[1741170270824,0.29034236,599.69,598.91,0.27943929]
[1741170271023,0.29034236,599.69,598.81,1.50762384]
[1741170271328,2.64507525,599.68,598.82,0.27943929]
[1741170271522,4.16096435,599.67,598.83,0.27943929]
[1741170271728,4.16096435,599.66,598.84,0.27943929]
[1741170271928,4.16086009,599.65,598.85,0.27943929]
[1741170272227,0.29034236,599.69,598.84,0.264]
[1741170272228,0.29034236,599.69,598.86,0.27943929]
[1741170272528,2.64456295,599.68,598.87,0.27943929]
[1741170272726,4.16007087,599.67,598.85,0.27943929]
[1741170272921,0.29034236,599.69,598.85,0.27943929]
[1741170273122,0.29034236,599.69,598.84,0.264]
[1741170273123,2.59973547,599.56,598.84,0.264]
[1741170273322,2.64432051,599.67,598.85,0.27944344]
[1741170273525,2.59929652,599.56,598.85,0.27944344]
[1741170273720,2.59918622,599.55,598.85,0.27944344]
[1741170273927,0.29036053,599.61,598.85,0.27944344]
[1741170274122,1.18939805,599.54,598.85,0.27944344]
[1741170274625,2.13633729,599.53,598.85,0.27944344]
[1741170274826,1.18939805,599.53,598.85,0.27944344]
[1741170275025,0.29036053,599.61,598.85,0.27944344]
[1741170275226,0.94696221,599.56,598.85,0.27944344]
[1741170275426,2.59925387,599.55,598.85,0.27944344]
[1741170275627,1.65229166,599.54,598.85,0.27944344]
[1741170276122,4.65900673,599.79,598.85,0.27944344]
[1741170276327,4.65900673,599.78,598.85,0.27944344]
[1741170276626,4.65900673,599.77,598.85,0.27944344]
[1741170276828,1.18924492,599.56,598.85,0.27944344]
[1741170277529,4.15864462,599.65,598.85,0.27944344]
[1741170277730,0.29033025,599.68,598.85,0.27944344]
[1741170277930,4.15790371,599.67,598.85,0.27944344]
[1741170278131,4.15790371,599.66,598.85,0.27944344]
[1741170278331,4.15790371,599.65,598.85,0.27944344]
[1741170278531,0.29033025,599.68,598.85,0.27944344]
[1741170278731,1.18924946,599.56,598.85,0.27944344]
[1741170279227,4.65896177,599.86,598.85,0.27944344]
[1741170279432,0.2903351,599.76,598.85,0.27944344]
[1741170279632,1.90320872,599.75,598.93,1.22818455]
[1741170279830,1.90320872,599.75,598.94,0.27944344]
[1741170280533,2.59946731,599.74,598.94,0.27944344]
[1741170280733,2.59946731,599.73,598.94,0.27944344]
[1741170281029,0.94697707,599.72,598.94,0.27944344]
[1741170281232,0.2903351,599.76,598.94,0.27944344]
[1741170281432,2.59903682,599.75,598.94,0.27944344]
[1741170281636,2.59903682,599.74,599.04,1.22818455]
[1741170281829,0.2903351,599.76,599.04,1.22818455]
[1741170281830,2.59903682,599.73,599.05,0.27944344]
[1741170282033,0.2903351,599.76,599.05,0.27944344]
[1741170282233,2.59859563,599.75,599.05,0.27944344]
[1741170282435,2.59859563,599.74,599.05,0.27944344]
[1741170282635,2.59859563,599.73,599.05,0.27944344]
[1741170282836,0.50022573,599.85,599.05,0.27944344]
[1741170283037,7.25587518,599.84,599.05,0.27944344]
[1741170283338,6.75564945,599.83,599.05,0.27944344]
[1741170283533,6.75564945,599.82,599.05,0.27944344]
[1741170283730,6.75564945,599.81,599.05,0.27944344]
[1741170283937,6.75564945,599.8,599.06,0.2793488]
[1741170284237,9.84668424,599.79,599.07,0.2793488]
[1741170284436,6.75564945,599.78,598.99,0.2793488]
[1741170284737,6.75454676,599.77,599.0,0.2793488]
[1741170284934,2.59832671,599.76,598.99,0.2793488]
[1741170285135,2.59832671,599.75,599.0,0.2793488]
[1741170285438,3.78718624,599.74,599.01,0.2793488]
[1741170285637,1.18885953,599.74,598.99,0.2793488]
[1741170285837,1.18885953,599.74,599.0,0.2793488]
[1741170286032,1.18885953,599.73,599.01,0.2793488]
[1741170286237,1.18885953,599.73,599.02,0.2793488]
[1741170286437,0.29026608,599.87,598.99,0.2793488]
[1741170286638,7.25403859,599.86,599.0,0.2793488]
[1741170286839,7.25403859,599.85,598.97,0.2793488]
[1741170287039,0.29026608,599.87,598.98,0.2793488]
[1741170287040,7.25405834,599.84,598.98,0.2793488]
[1741170287241,6.75384663,599.83,598.97,0.2793488]
[1741170287539,9.84418215,599.82,598.98,0.2793488]
[1741170287734,6.75384663,599.81,598.97,0.2793488]
[1741170287940,6.75384663,599.8,598.98,0.2793488]
[1741170288134,6.75384663,599.79,598.97,0.2793488]
[1741170288342,2.59763332,599.78,598.98,0.2793488]
[1741170288540,2.59763332,599.77,598.97,0.2793488]
[1741170288840,2.59763332,599.76,598.98,0.2793488]
[1741170289036,2.59763332,599.75,598.97,0.2793488]
[1741170289236,2.59763332,599.74,598.98,0.2793488]
[1741170289436,2.59763332,599.73,598.97,0.2793488]
[1741170289637,2.59763332,599.72,598.98,0.2793488]
[1741170289836,2.59763332,599.71,598.99,0.2793488]
[1741170290035,2.59763332,599.7,599.0,0.2793488]
[1741170290239,2.59763332,599.69,599.01,0.2793488]
[1741170290439,2.59763332,599.68,599.02,0.2793488]
[1741170290644,0.9463164,599.67,599.03,0.2793488]
[1741170290941,1.18859058,599.66,599.04,0.2793488]
[1741170291138,0.50024614,599.85,598.97,0.2793488]
[1741170291344,7.25741429,599.84,598.97,0.2793488]
[1741170291542,7.25741429,599.83,598.97,0.2793488]
[1741170291742,7.25741429,599.82,598.93,0.56964151]
[1741170292043,7.25741429,599.81,598.94,0.2793488]
[1741170292346,7.25741429,599.8,598.94,0.2793488]
[1741170292543,9.84924252,599.79,598.94,0.2793488]
[1741170292739,6.75716815,599.78,598.93,0.29029271]
[1741170292944,6.75716815,599.77,598.94,0.27936911]
[1741170293140,6.75716815,599.76,598.94,0.27936911]
[1741170293345,6.75716815,599.75,598.95,0.264]
[1741170293643,6.75716815,599.74,598.96,0.27936911]
[1741170293845,7.20586004,599.73,598.96,0.27936911]
[1741170294045,2.59891083,599.72,598.96,0.27936911]
[1741170294344,2.59891083,599.71,598.96,0.27936911]
[1741170294546,2.59891083,599.7,598.96,0.27936911]
[1741170294739,0.29029271,599.84,598.96,0.27936911]
[1741170294740,7.2069845,599.69,598.96,0.27936911]
[1741170294938,6.76009226,599.68,598.96,0.27936911]
[1741170295142,3.09207437,599.69,598.96,0.27936911]
[1741170295143,6.76009226,599.67,598.96,0.27936911]
[1741170295341,6.76009226,599.66,598.96,0.27936911]
[1741170295543,6.76009226,599.65,598.96,0.27936911]
[1741170295744,6.76009226,599.64,598.96,0.27936911]
[1741170295943,6.76009226,599.63,598.96,0.27936911]
[1741170296140,2.59912036,599.62,598.96,0.27936911]
[1741170296446,2.59912036,599.61,598.97,0.27943194]
[1741170296641,2.59912036,599.6,598.96,0.27943194]
[1741170296841,3.78837973,599.59,598.97,0.27943194]
[1741170297044,1.18925937,599.59,598.96,0.27943194]
[1741170297644,0.98344442,599.97,598.96,0.27943194]
[1741170297645,1.18925937,599.58,598.96,0.27943194]
[1741170298748,0.29033752,599.71,598.96,0.27943194]
[1741170298949,6.76200162,599.7,598.96,0.27943194]
[1741170299150,6.7622019,599.69,598.96,0.27943194]
[1741170299346,2.60076985,599.68,598.96,0.27943194]
[1741170299546,2.60076985,599.67,598.96,0.27943194]
[1741170299742,2.60076985,599.66,598.96,0.27943194]
[1741170299949,2.60076985,599.65,598.97,0.27939563]
[1741170300144,1.19022222,599.66,598.95,0.264]
[1741170300145,1.19022222,599.66,598.96,0.27939563]
[1741170300350,4.66392083,599.98,598.96,0.27939563]
[1741170300552,7.26668676,599.97,598.96,0.27939563]
[1741170300852,7.26668676,599.96,598.96,0.27939563]
[1741170301052,10.36316097,599.95,598.96,0.27939563]
[1741170301252,7.26668676,599.94,598.96,0.27939563]
[1741170301450,7.26668676,599.93,598.96,0.27939563]